[Event "*** Titled Tuesday Blitz"]
[Site "Chess.com"]
[Date "2020.05.19"]
[Round "7"]
[White "lolo9292"]
[Black "chito89"]
[Result "0-1"]
[WhiteElo "2526"]
[BlackElo "2733"]
[TimeControl "180+1"]
[EndTime "13:20:40 PDT"]
[Termination "chito89 won by resignation"]

1. d4 {[%clk 0:03:00.9]} 1... Nf6 {[%clk 0:02:58.6]} 2. c4 {[%clk 0:02:49.4]}
2... e6 {[%clk 0:02:56.6]} 3. Nc3 {[%clk 0:02:49.4]} 3... c5 {[%clk 0:02:46]} 4.
Nf3 {[%clk 0:02:46.7]} 4... cxd4 {[%clk 0:02:35.7]} 5. Nxd4 {[%clk 0:02:46.2]}
5... a6 {[%clk 0:02:36.2]} 6. e4 {[%clk 0:02:46]} 6... Bb4 {[%clk 0:02:33.8]} 7.
Qd3 {[%clk 0:02:43.8]} 7... O-O {[%clk 0:02:32.4]} 8. e5 {[%clk 0:02:42.4]} 8...
Ne8 {[%clk 0:02:31.9]} 9. Be2 {[%clk 0:02:42.3]} 9... d6 {[%clk 0:02:28.9]} 10.
exd6 {[%clk 0:02:42.5]} 10... Nxd6 {[%clk 0:02:28.6]} 11. O-O {[%clk 0:02:42.1]}
11... e5 {[%clk 0:02:25.1]} 12. Nb3 {[%clk 0:02:39.4]} 12... Bf5 {[%clk
0:02:07.3]} 13. Qg3 {[%clk 0:02:36]} 13... Bxc3 {[%clk 0:01:58.4]} 14. Qxc3
{[%clk 0:02:36.9]} 14... Nc6 {[%clk 0:01:57.3]} 15. Rd1 {[%clk 0:02:33.8]} 15...
Qf6 {[%clk 0:01:47.4]} 16. Nc5 {[%clk 0:02:31]} 16... Rad8 {[%clk 0:01:43.3]}
17. Be3 {[%clk 0:02:30.5]} 17... Ne4 {[%clk 0:01:05.1]} 18. Nxe4 {[%clk
0:02:29]} 18... Bxe4 {[%clk 0:01:06]} 19. f3 {[%clk 0:02:07.9]} 19... Nd4 {[%clk
0:01:01.8]} 20. Bxd4 {[%clk 0:01:51.3]} 20... exd4 {[%clk 0:01:02.7]} 21. Qb4
{[%clk 0:01:48.3]} 21... Bc6 {[%clk 0:00:53.3]} 22. Bd3 {[%clk 0:01:47.1]} 22...
Rfe8 {[%clk 0:00:50.9]} 23. Re1 {[%clk 0:01:46.8]} 23... Qg5 {[%clk 0:00:46.4]}
24. Kh1 {[%clk 0:01:41.8]} 24... Re3 {[%clk 0:00:45.5]} 25. Qd2 {[%clk
0:01:36.9]} 25... Rde8 {[%clk 0:00:31.6]} 26. Rxe3 {[%clk 0:01:20.8]} 26... Qxe3
{[%clk 0:00:32.5]} 27. Qd1 {[%clk 0:01:20.9]} 27... Qf2 {[%clk 0:00:30.1]} 28.
Bf1 {[%clk 0:01:19.5]} 28... Qxb2 {[%clk 0:00:28.1]} 29. Rb1 {[%clk 0:01:18.1]}
29... Qxa2 {[%clk 0:00:27.4]} 30. Ra1 {[%clk 0:01:16.3]} 30... Qf2 {[%clk
0:00:26.9]} 31. Rc1 {[%clk 0:01:13.4]} 31... h5 {[%clk 0:00:26.4]} 32. h3 {[%clk
0:01:09.5]} 32... h4 {[%clk 0:00:25.3]} 33. Qd3 {[%clk 0:01:07]} 33... Re1
{[%clk 0:00:19.6]} 34. Rxe1 {[%clk 0:01:06.1]} 34... Qxe1 {[%clk 0:00:20.5]} 35.
Kh2 {[%clk 0:01:07]} 35... Qe5+ {[%clk 0:00:19.5]} 36. Kh1 {[%clk 0:01:06.5]}
36... a5 {[%clk 0:00:16.5]} 37. Be2 {[%clk 0:00:52.7]} 37... a4 {[%clk
0:00:15.9]} 38. Bd1 {[%clk 0:00:52.9]} 38... a3 {[%clk 0:00:15]} 39. Bb3 {[%clk
0:00:52.6]} 39... Qe1+ {[%clk 0:00:13.3]} 40. Kh2 {[%clk 0:00:52.5]} 40... Qc3
{[%clk 0:00:13.6]} 41. Qf5 {[%clk 0:00:38.8]} 41... g6 {[%clk 0:00:13.4]} 42.
Qb1 {[%clk 0:00:34.1]} 42... d3 {[%clk 0:00:11.9]} 43. Ba2 {[%clk 0:00:34.1]}
43... Qe5+ {[%clk 0:00:10.5]} 44. Kg1 {[%clk 0:00:33.3]} 44... d2 {[%clk
0:00:11]} 45. Kf2 {[%clk 0:00:33.5]} 45... Qg3+ {[%clk 0:00:09]} 46. Kf1 {[%clk
0:00:33.6]} 46... Bxf3 {[%clk 0:00:09]} 47. Qxg6+ {[%clk 0:00:25.3]} 47... fxg6
{[%clk 0:00:07.9]} 0-1

[Event "*** Titled Tuesday Blitz"]
[Site "Chess.com"]
[Date "2020.05.19"]
[Round "7"]
[White "Szparu"]
[Black "Evgeny81"]
[Result "0-1"]
[WhiteElo "2551"]
[BlackElo "2720"]
[TimeControl "180+1"]
[EndTime "13:20:40 PDT"]
[Termination "Evgeny81 won by resignation"]

1. e4 {[%clk 0:03:00.9]} 1... e6 {[%clk 0:03:00.9]} 2. d4 {[%clk 0:03:00.6]}
2... d5 {[%clk 0:03:01.3]} 3. Nd2 {[%clk 0:03:01.3]} 3... Nd7 {[%clk 0:03:00.8]}
4. Ngf3 {[%clk 0:02:57.1]} 4... Ne7 {[%clk 0:03:00.3]} 5. c3 {[%clk 0:02:49.4]}
5... c5 {[%clk 0:02:59.9]} 6. Bd3 {[%clk 0:02:36.3]} 6... cxd4 {[%clk
0:02:58.6]} 7. cxd4 {[%clk 0:02:32.3]} 7... dxe4 {[%clk 0:02:57.5]} 8. Nxe4
{[%clk 0:02:32.4]} 8... Nd5 {[%clk 0:02:57.9]} 9. Bg5 {[%clk 0:02:26.4]} 9...
Qa5+ {[%clk 0:02:54]} 10. Bd2 {[%clk 0:02:26.2]} 10... Bb4 {[%clk 0:02:43.1]}
11. O-O {[%clk 0:02:24.6]} 11... Bxd2 {[%clk 0:02:41.1]} 12. Nfxd2 {[%clk
0:02:18.8]} 12... O-O {[%clk 0:02:39.6]} 13. Nb3 {[%clk 0:02:13.5]} 13... Qb6
{[%clk 0:02:35.2]} 14. Rc1 {[%clk 0:02:07.7]} 14... N7f6 {[%clk 0:02:31.8]} 15.
Nec5 {[%clk 0:02:06.5]} 15... Bd7 {[%clk 0:02:27.5]} 16. g4 {[%clk 0:01:56]}
16... Bc6 {[%clk 0:02:18.4]} 17. g5 {[%clk 0:01:39.5]} 17... Nf4 {[%clk
0:02:18.4]} 18. h4 {[%clk 0:01:35]} 18... Qc7 {[%clk 0:02:08.8]} 19. f3 {[%clk
0:01:23.1]} 19... Nxd3 {[%clk 0:01:49.8]} 20. Qxd3 {[%clk 0:01:22.3]} 20... Qg3+
{[%clk 0:01:49.4]} 21. Kh1 {[%clk 0:01:22.9]} 21... Ng4 {[%clk 0:01:49.2]} 22.
Rc2 {[%clk 0:01:15.1]} 22... Qxh4+ {[%clk 0:01:35.2]} 23. Kg1 {[%clk 0:01:13.3]}
23... Rad8 {[%clk 0:01:07]} 24. fxg4 {[%clk 0:01:11.9]} 24... Qxg4+ {[%clk
0:01:02.2]} 25. Kh2 {[%clk 0:00:59.6]} 25... Qxg5 {[%clk 0:00:47.9]} 26. Rg1
{[%clk 0:00:31.9]} 26... Qf6 {[%clk 0:00:25.5]} 27. Qg3 {[%clk 0:00:27]} 27...
Rd5 {[%clk 0:00:22.4]} 28. Rgg2 {[%clk 0:00:13.1]} 28... Rh5+ {[%clk 0:00:17.8]}
29. Kg1 {[%clk 0:00:13.3]} 29... Bxg2 {[%clk 0:00:17.2]} 30. Rxg2 {[%clk
0:00:13.1]} 30... Rd8 {[%clk 0:00:13.9]} 31. Ne4 {[%clk 0:00:08.3]} 31... Qh6
{[%clk 0:00:13.7]} 32. Qc7 {[%clk 0:00:04.9]} 32... Rf8 {[%clk 0:00:11.1]} 33.
Nbc5 {[%clk 0:00:03.4]} 33... Qe3+ {[%clk 0:00:09.3]} 34. Rf2 {[%clk 0:00:02.7]}
34... Qxd4 {[%clk 0:00:07.5]} 35. Qd6 {[%clk 0:00:02.2]} 35... Qxd6 {[%clk
0:00:06.5]} 36. Nxd6 {[%clk 0:00:02.7]} 36... Rg5+ {[%clk 0:00:07]} 37. Rg2
{[%clk 0:00:02.2]} 37... Rxc5 {[%clk 0:00:07.6]} 0-1

[Event "*** Titled Tuesday Blitz"]
[Site "Chess.com"]
[Date "2020.05.19"]
[Round "7"]
[White "scabies1"]
[Black "PotapovaM"]
[Result "0-1"]
[WhiteElo "2283"]
[BlackElo "2425"]
[TimeControl "180+1"]
[EndTime "13:20:40 PDT"]
[Termination "PotapovaM won on time"]

1. e4 {[%clk 0:02:45.2]} 1... c5 {[%clk 0:02:58.7]} 2. Nf3 {[%clk 0:02:43.4]}
2... d6 {[%clk 0:02:59.2]} 3. d4 {[%clk 0:02:40.6]} 3... cxd4 {[%clk 0:03:00.1]}
4. Nxd4 {[%clk 0:02:41.5]} 4... Nf6 {[%clk 0:03:00.7]} 5. Nc3 {[%clk 0:02:41]}
5... a6 {[%clk 0:03:01.3]} 6. Bg5 {[%clk 0:02:36.9]} 6... e6 {[%clk 0:02:58.8]}
7. f4 {[%clk 0:02:36.4]} 7... h6 {[%clk 0:02:58.3]} 8. Bh4 {[%clk 0:02:35.4]}
8... Qb6 {[%clk 0:02:58.4]} 9. Qd2 {[%clk 0:02:29]} 9... Qxb2 {[%clk 0:02:58.1]}
10. Rb1 {[%clk 0:02:27.4]} 10... Qa3 {[%clk 0:02:58.6]} 11. f5 {[%clk
0:02:23.8]} 11... Be7 {[%clk 0:02:58.5]} 12. Bg3 {[%clk 0:01:59]} 12... O-O
{[%clk 0:02:47.1]} 13. Be2 {[%clk 0:01:47.8]} 13... Nc6 {[%clk 0:02:41]} 14.
fxe6 {[%clk 0:01:44.1]} 14... fxe6 {[%clk 0:02:36.9]} 15. Nxc6 {[%clk
0:01:43.9]} 15... bxc6 {[%clk 0:02:37.8]} 16. O-O {[%clk 0:01:43.7]} 16... e5
{[%clk 0:02:20]} 17. Rb3 {[%clk 0:01:33.2]} 17... Qa5 {[%clk 0:02:17.7]} 18. Bf2
{[%clk 0:01:12.2]} 18... Qd8 {[%clk 0:01:46.2]} 19. h3 {[%clk 0:01:00.9]} 19...
Be6 {[%clk 0:01:45.7]} 20. Rb6 {[%clk 0:01:00.1]} 20... Qc8 {[%clk 0:01:36.2]}
21. Rfb1 {[%clk 0:00:50.6]} 21... Rd8 {[%clk 0:01:31.7]} 22. Rb7 {[%clk
0:00:44.3]} 22... Bf8 {[%clk 0:01:31.8]} 23. Bh4 {[%clk 0:00:38]} 23... d5
{[%clk 0:01:15.3]} 24. Bxf6 {[%clk 0:00:33.7]} 24... gxf6 {[%clk 0:01:15.2]} 25.
Qd3 {[%clk 0:00:30.5]} 25... Rd7 {[%clk 0:01:08.8]} 26. Qg3+ {[%clk 0:00:27.7]}
26... Bg7 {[%clk 0:01:09.1]} 27. Rxd7 {[%clk 0:00:19.1]} 27... Qxd7 {[%clk
0:01:10]} 28. exd5 {[%clk 0:00:19.6]} 28... cxd5 {[%clk 0:01:06.4]} 29. Rb6
{[%clk 0:00:19.9]} 29... Qa7 {[%clk 0:01:01.9]} 30. Qf2 {[%clk 0:00:18.7]} 30...
Bf7 {[%clk 0:00:57]} 31. Bf3 {[%clk 0:00:15.6]} 31... e4 {[%clk 0:00:54.1]} 32.
Bg4 {[%clk 0:00:13.1]} 32... d4 {[%clk 0:00:38.8]} 33. Na4 {[%clk 0:00:11]}
33... e3 {[%clk 0:00:29.2]} 34. Qf3 {[%clk 0:00:10.9]} 34... Re8 {[%clk
0:00:24.4]} 35. Qf4 {[%clk 0:00:11.1]} 35... e2 {[%clk 0:00:19.8]} 36. Bxe2
{[%clk 0:00:11.2]} 36... Rxe2 {[%clk 0:00:19.8]} 37. Rb8+ {[%clk 0:00:11.8]}
37... Re8 {[%clk 0:00:18.3]} 38. Rxe8+ {[%clk 0:00:08.4]} 38... Bxe8 {[%clk
0:00:19.2]} 39. Qe4 {[%clk 0:00:07.9]} 39... Bxa4 {[%clk 0:00:17.6]} 0-1

[Event "*** Titled Tuesday Blitz"]
[Site "Chess.com"]
[Date "2020.05.19"]
[Round "7"]
[White "Nikithebest"]
[Black "Perecke"]
[Result "1-0"]
[WhiteElo "2439"]
[BlackElo "2264"]
[TimeControl "180+1"]
[EndTime "13:20:41 PDT"]
[Termination "Nikithebest won on time"]

1. e4 {[%clk 0:03:00.9]} 1... c5 {[%clk 0:02:52.4]} 2. Nf3 {[%clk 0:02:59.6]}
2... e6 {[%clk 0:02:52.3]} 3. d3 {[%clk 0:02:59.5]} 3... Nf6 {[%clk 0:02:50.9]}
4. g3 {[%clk 0:03:00]} 4... d5 {[%clk 0:02:50.7]} 5. Qe2 {[%clk 0:02:59.8]} 5...
Be7 {[%clk 0:02:49.6]} 6. Bg2 {[%clk 0:03:00.4]} 6... O-O {[%clk 0:02:49.3]} 7.
O-O {[%clk 0:03:01.1]} 7... Nc6 {[%clk 0:02:49.5]} 8. e5 {[%clk 0:03:01.7]} 8...
Nd7 {[%clk 0:02:48.3]} 9. c4 {[%clk 0:03:02.6]} 9... dxc4 {[%clk 0:02:38.6]} 10.
dxc4 {[%clk 0:03:01.9]} 10... f6 {[%clk 0:02:36.7]} 11. exf6 {[%clk 0:02:53.3]}
11... Nxf6 {[%clk 0:02:37.6]} 12. Nc3 {[%clk 0:02:50]} 12... Nd4 {[%clk
0:02:17.1]} 13. Nxd4 {[%clk 0:02:48.1]} 13... cxd4 {[%clk 0:02:18]} 14. Rd1
{[%clk 0:02:48.2]} 14... Bc5 {[%clk 0:02:07.9]} 15. Ne4 {[%clk 0:02:28.7]} 15...
Nxe4 {[%clk 0:01:49.3]} 16. Qxe4 {[%clk 0:02:29.6]} 16... Qf6 {[%clk 0:01:39.2]}
17. f4 {[%clk 0:02:13.2]} 17... Bd7 {[%clk 0:01:12.6]} 18. Re1 {[%clk
0:02:00.7]} 18... Rab8 {[%clk 0:00:39]} 19. Bd2 {[%clk 0:01:59.4]} 19... Rfe8
{[%clk 0:00:38.8]} 20. b4 {[%clk 0:01:57.5]} 20... Bc6 {[%clk 0:00:25.7]} 21.
Qe5 {[%clk 0:01:54.8]} 21... d3+ {[%clk 0:00:24.6]} 22. Kh1 {[%clk 0:01:53.6]}
22... Bd4 {[%clk 0:00:19.8]} 23. Qxf6 {[%clk 0:01:49]} 23... gxf6 {[%clk
0:00:15.6]} 24. Rad1 {[%clk 0:01:47.2]} 24... e5 {[%clk 0:00:13.7]} 25. fxe5
{[%clk 0:01:35.2]} 25... fxe5 {[%clk 0:00:11.7]} 26. Be4 {[%clk 0:01:34.8]}
26... Bxe4+ {[%clk 0:00:08]} 27. Rxe4 {[%clk 0:01:34.9]} 27... Rf8 {[%clk
0:00:07.5]} 28. Bf4 {[%clk 0:01:29.5]} 28... exf4 {[%clk 0:00:02.9]} 29. Rxd4
{[%clk 0:01:29.4]} 29... fxg3 {[%clk 0:00:02.9]} 30. hxg3 {[%clk 0:01:27.8]}
30... Rf2 {[%clk 0:00:03]} 31. R4xd3 {[%clk 0:01:26.2]} 31... Rxa2 {[%clk
0:00:03.1]} 32. Rd8+ {[%clk 0:01:25.9]} 32... Rxd8 {[%clk 0:00:03.7]} 33. Rxd8+
{[%clk 0:01:26.3]} 33... Kg7 {[%clk 0:00:04.6]} 34. Rd7+ {[%clk 0:01:27]} 34...
Kg6 {[%clk 0:00:05.4]} 35. Rxb7 {[%clk 0:01:27.7]} 35... Rc2 {[%clk 0:00:03.3]}
36. c5 {[%clk 0:01:26.2]} 36... a5 {[%clk 0:00:03.4]} 37. bxa5 {[%clk 0:01:11]}
37... Rxc5 {[%clk 0:00:03.6]} 38. a6 {[%clk 0:01:11.9]} 38... Ra5 {[%clk
0:00:02.4]} 39. a7 {[%clk 0:01:11.6]} 39... Ra2 {[%clk 0:00:02.7]} 40. Kg1
{[%clk 0:01:09.5]} 40... h6 {[%clk 0:00:01.9]} 41. Kf1 {[%clk 0:01:09.2]} 41...
Kf6 {[%clk 0:00:02]} 42. Ke1 {[%clk 0:01:09.4]} 42... Kg6 {[%clk 0:00:02.5]} 43.
Kd1 {[%clk 0:01:09.3]} 43... Kf6 {[%clk 0:00:02.6]} 44. Kc1 {[%clk 0:01:09.4]}
44... Kg5 {[%clk 0:00:03.1]} 45. Kb1 {[%clk 0:01:08.7]} 45... Ra6 {[%clk
0:00:03.4]} 46. Kb2 {[%clk 0:01:05.1]} 46... Kg4 {[%clk 0:00:03.9]} 47. Rg7+
{[%clk 0:01:05.1]} 47... Kf3 {[%clk 0:00:03.9]} 48. Kb3 {[%clk 0:01:00.1]} 48...
h5 {[%clk 0:00:03.8]} 49. Kb4 {[%clk 0:00:59.6]} 49... Ra1 {[%clk 0:00:03.1]}
50. Kb5 {[%clk 0:00:56.6]} 50... Rb1+ {[%clk 0:00:02.4]} 51. Ka6 {[%clk
0:00:56.7]} 51... Ra1+ {[%clk 0:00:02.3]} 52. Kb7 {[%clk 0:00:57.1]} 52... Rb1+
{[%clk 0:00:03.2]} 53. Ka8 {[%clk 0:00:57.1]} 53... Ra1 {[%clk 0:00:03.6]} 54.
Kb8 {[%clk 0:00:54]} 54... Rb1+ {[%clk 0:00:03.2]} 55. Rb7 {[%clk 0:00:53.8]}
55... Ra1 {[%clk 0:00:02]} 56. Rb3+ {[%clk 0:00:52.8]} 56... Kg2 {[%clk
0:00:01.4]} 57. a8=Q+ {[%clk 0:00:53.3]} 1-0

[Event "*** Titled Tuesday Blitz"]
[Site "Chess.com"]
[Date "2020.05.19"]
[Round "7"]
[White "lucliasco"]
[Black "Jospem"]
[Result "1/2-1/2"]
[WhiteElo "2667"]
[BlackElo "2814"]
[TimeControl "180+1"]
[EndTime "13:20:43 PDT"]
[Termination "Game drawn by repetition"]

1. b3 {[%clk 0:02:55.6]} 1... c5 {[%clk 0:02:59.9]} 2. Bb2 {[%clk 0:02:54.7]}
2... Nc6 {[%clk 0:03:00.8]} 3. e3 {[%clk 0:02:53.6]} 3... e6 {[%clk 0:03:00.2]}
4. f4 {[%clk 0:02:53.1]} 4... Nf6 {[%clk 0:03:00.7]} 5. Nf3 {[%clk 0:02:52.6]}
5... b6 {[%clk 0:03:01.2]} 6. Bd3 {[%clk 0:02:52.2]} 6... Bb7 {[%clk 0:03:01.6]}
7. O-O {[%clk 0:02:51.2]} 7... Be7 {[%clk 0:03:02.1]} 8. Qe1 {[%clk 0:02:48.1]}
8... d5 {[%clk 0:03:01.9]} 9. Ne5 {[%clk 0:02:47.3]} 9... d4 {[%clk 0:02:56.9]}
10. Nxc6 {[%clk 0:02:42.9]} 10... Bxc6 {[%clk 0:02:57.8]} 11. Na3 {[%clk
0:02:43.3]} 11... O-O {[%clk 0:02:44.1]} 12. Nc4 {[%clk 0:02:31.4]} 12... Rc8
{[%clk 0:02:41.2]} 13. Ne5 {[%clk 0:02:31.8]} 13... Ba8 {[%clk 0:02:36.1]} 14.
a3 {[%clk 0:02:27]} 14... g6 {[%clk 0:02:01.3]} 15. Qf2 {[%clk 0:02:21.5]} 15...
Ne4 {[%clk 0:01:46.4]} 16. Bxe4 {[%clk 0:02:10.6]} 16... Bxe4 {[%clk 0:01:47.3]}
17. d3 {[%clk 0:02:11.1]} 17... Bb7 {[%clk 0:01:44.1]} 18. e4 {[%clk 0:02:11.1]}
18... f6 {[%clk 0:01:42.6]} 19. Nc4 {[%clk 0:02:08.5]} 19... f5 {[%clk
0:01:37.6]} 20. Rae1 {[%clk 0:02:02.5]} 20... fxe4 {[%clk 0:01:37.3]} 21. dxe4
{[%clk 0:02:01]} 21... b5 {[%clk 0:01:37.7]} 22. Ne5 {[%clk 0:01:59.3]} 22...
Bd6 {[%clk 0:01:36.5]} 23. Qe2 {[%clk 0:01:53.8]} 23... a6 {[%clk 0:01:17]} 24.
a4 {[%clk 0:01:41.6]} 24... bxa4 {[%clk 0:00:50.2]} 25. bxa4 {[%clk 0:01:42.5]}
25... Rxf4 {[%clk 0:00:48.4]} 26. Rxf4 {[%clk 0:01:39]} 26... Bxe5 {[%clk
0:00:48.9]} 27. Rff1 {[%clk 0:01:35.7]} 27... c4 {[%clk 0:00:48.4]} 28. Bc1
{[%clk 0:01:32.2]} 28... Qh4 {[%clk 0:00:42.5]} 29. g3 {[%clk 0:01:29.5]} 29...
Qe7 {[%clk 0:00:36.4]} 30. Bf4 {[%clk 0:01:27.1]} 30... Bg7 {[%clk 0:00:36.7]}
31. Qd2 {[%clk 0:01:24.8]} 31... Qc5 {[%clk 0:00:22.2]} 32. Bh6 {[%clk
0:00:59.1]} 32... c3 {[%clk 0:00:21]} 33. Qf4 {[%clk 0:00:40.4]} 33... d3+
{[%clk 0:00:20.5]} 34. Kg2 {[%clk 0:00:37.5]} 34... Bxh6 {[%clk 0:00:20.8]} 35.
Qf7+ {[%clk 0:00:28.2]} 35... Kh8 {[%clk 0:00:20.1]} 36. Qxb7 {[%clk 0:00:29.1]}
36... d2 {[%clk 0:00:18]} 37. Rd1 {[%clk 0:00:23.5]} 37... Qc6 {[%clk
0:00:18.3]} 38. Qxc6 {[%clk 0:00:20.6]} 38... Rxc6 {[%clk 0:00:19.2]} 39. Rb1
{[%clk 0:00:19.5]} 39... Rd6 {[%clk 0:00:05.2]} 40. Rb8+ {[%clk 0:00:16.1]}
40... Kg7 {[%clk 0:00:05.6]} 41. Rb7+ {[%clk 0:00:16.8]} 41... Kg8 {[%clk
0:00:06]} 42. Rb8+ {[%clk 0:00:17.3]} 42... Kg7 {[%clk 0:00:06.3]} 43. Rb7+
{[%clk 0:00:17.9]} 43... Kg8 {[%clk 0:00:04]} 44. Rb8+ {[%clk 0:00:18.2]} 44...
Kg7 {[%clk 0:00:02]} 1/2-1/2

[Event "*** Titled Tuesday Blitz"]
[Site "Chess.com"]
[Date "2020.05.19"]
[Round "7"]
[White "DDTerziev04"]
[Black "Treacherous_horse64"]
[Result "1-0"]
[WhiteElo "2265"]
[BlackElo "2384"]
[TimeControl "180+1"]
[EndTime "13:20:43 PDT"]
[Termination "DDTerziev04 won on time"]

1. e4 {[%clk 0:03:00.9]} 1... c6 {[%clk 0:03:00.1]} 2. Nf3 {[%clk 0:02:59.7]}
2... d5 {[%clk 0:03:01]} 3. d3 {[%clk 0:03:00]} 3... Nd7 {[%clk 0:02:53.1]} 4.
Nc3 {[%clk 0:02:57.3]} 4... b5 {[%clk 0:02:50.3]} 5. exd5 {[%clk 0:02:56.3]}
5... b4 {[%clk 0:02:50.5]} 6. Ne2 {[%clk 0:02:54.5]} 6... cxd5 {[%clk
0:02:50.6]} 7. g3 {[%clk 0:02:52.9]} 7... e6 {[%clk 0:02:48.5]} 8. Bg2 {[%clk
0:02:52.6]} 8... Ngf6 {[%clk 0:02:48.8]} 9. O-O {[%clk 0:02:52.2]} 9... Bd6
{[%clk 0:02:47.2]} 10. Ned4 {[%clk 0:02:50.7]} 10... a6 {[%clk 0:02:42.7]} 11.
Re1 {[%clk 0:02:47.9]} 11... O-O {[%clk 0:02:39.5]} 12. Bg5 {[%clk 0:02:43]}
12... Qc7 {[%clk 0:02:33.1]} 13. Rc1 {[%clk 0:02:33.3]} 13... Bb7 {[%clk
0:02:29.1]} 14. c3 {[%clk 0:02:29.5]} 14... bxc3 {[%clk 0:02:26.1]} 15. Rxc3
{[%clk 0:02:28.2]} 15... Qb6 {[%clk 0:02:17.7]} 16. Rb3 {[%clk 0:02:26.7]} 16...
Qa7 {[%clk 0:02:16.9]} 17. Be3 {[%clk 0:02:16.9]} 17... Bc5 {[%clk 0:02:14.1]}
18. Nc2 {[%clk 0:02:16.7]} 18... Bc6 {[%clk 0:02:10.6]} 19. Bxc5 {[%clk
0:02:05.9]} 19... Qxc5 {[%clk 0:02:11.4]} 20. Rc3 {[%clk 0:02:05.3]} 20... Qb6
{[%clk 0:02:07.6]} 21. Ncd4 {[%clk 0:02:05.1]} 21... Bb7 {[%clk 0:02:02.8]} 22.
Qd2 {[%clk 0:02:03.7]} 22... Rfc8 {[%clk 0:01:55.5]} 23. Rec1 {[%clk 0:02:02.8]}
23... Rxc3 {[%clk 0:01:52.6]} 24. Rxc3 {[%clk 0:02:00.1]} 24... Rc8 {[%clk
0:01:51.4]} 25. Rxc8+ {[%clk 0:01:58.5]} 25... Bxc8 {[%clk 0:01:52.3]} 26. Qc3
{[%clk 0:01:57.7]} 26... Bb7 {[%clk 0:01:41.6]} 27. a3 {[%clk 0:01:54.7]} 27...
h6 {[%clk 0:01:36.1]} 28. b4 {[%clk 0:01:52.4]} 28... Nb8 {[%clk 0:01:29.3]} 29.
Nb3 {[%clk 0:01:48.2]} 29... Nc6 {[%clk 0:01:28.2]} 30. Ne5 {[%clk 0:01:45.9]}
30... Nxe5 {[%clk 0:01:19.3]} 31. Qxe5 {[%clk 0:01:46.8]} 31... Qxf2+ {[%clk
0:01:19.5]} 32. Kxf2 {[%clk 0:01:39.1]} 32... Ng4+ {[%clk 0:01:19.6]} 33. Ke2
{[%clk 0:01:39]} 33... Nxe5 {[%clk 0:01:20.5]} 34. Nc5 {[%clk 0:01:38.2]} 34...
Bc8 {[%clk 0:01:20.4]} 35. Bf1 {[%clk 0:01:36.7]} 35... Nc6 {[%clk 0:01:19]} 36.
Ke3 {[%clk 0:01:33.3]} 36... d4+ {[%clk 0:01:10.1]} 37. Kd2 {[%clk 0:01:30.6]}
37... Kf8 {[%clk 0:01:03.8]} 38. Bg2 {[%clk 0:01:29.9]} 38... Na7 {[%clk
0:00:56.2]} 39. a4 {[%clk 0:01:24.4]} 39... Ke7 {[%clk 0:00:50.3]} 40. Kc2
{[%clk 0:01:23.9]} 40... f5 {[%clk 0:00:40.9]} 41. Kb3 {[%clk 0:01:23.1]} 41...
Kd6 {[%clk 0:00:32.6]} 42. Kc4 {[%clk 0:01:19.9]} 42... e5 {[%clk 0:00:32.4]}
43. b5 {[%clk 0:01:17.2]} 43... axb5+ {[%clk 0:00:32]} 44. axb5 {[%clk
0:01:18.1]} 44... Bd7 {[%clk 0:00:14.7]} 45. Nxd7 {[%clk 0:01:10.6]} 45... Kxd7
{[%clk 0:00:14.2]} 46. b6 {[%clk 0:01:08.7]} 46... Nc6 {[%clk 0:00:13.7]} 47. b7
{[%clk 0:01:04.9]} 47... Nb8 {[%clk 0:00:04.4]} 48. Kd5 {[%clk 0:01:04.4]} 48...
e4 {[%clk 0:00:04]} 49. Kxd4 {[%clk 0:01:02.7]} 1-0

[Event "*** Titled Tuesday Blitz"]
[Site "Chess.com"]
[Date "2020.05.19"]
[Round "7"]
[White "BeanScreen"]
[Black "GM_LOADING"]
[Result "0-1"]
[WhiteElo "2597"]
[BlackElo "2453"]
[TimeControl "180+1"]
[EndTime "13:20:45 PDT"]
[Termination "GM_LOADING won on time"]

1. e4 {[%clk 0:03:00.9]} 1... e5 {[%clk 0:03:00]} 2. Nf3 {[%clk 0:03:00.9]} 2...
Nc6 {[%clk 0:03:00.3]} 3. Bc4 {[%clk 0:03:01]} 3... Nf6 {[%clk 0:03:00.4]} 4. d3
{[%clk 0:03:01.1]} 4... h6 {[%clk 0:03:00.5]} 5. Nbd2 {[%clk 0:03:00.8]} 5... d6
{[%clk 0:02:59.2]} 6. a4 {[%clk 0:03:00.4]} 6... g6 {[%clk 0:02:59.2]} 7. Nf1
{[%clk 0:02:59.7]} 7... Bg7 {[%clk 0:02:58.8]} 8. Ne3 {[%clk 0:02:59.9]} 8...
O-O {[%clk 0:02:56.5]} 9. h3 {[%clk 0:02:59.7]} 9... a6 {[%clk 0:02:43.2]} 10.
Ng4 {[%clk 0:02:59.1]} 10... Nxg4 {[%clk 0:02:28.4]} 11. hxg4 {[%clk 0:03:00]}
11... Bxg4 {[%clk 0:02:29]} 12. Bxh6 {[%clk 0:02:59.7]} 12... Bxh6 {[%clk
0:02:16.7]} 13. Rxh6 {[%clk 0:03:00.6]} 13... Kg7 {[%clk 0:02:17.2]} 14. Qd2
{[%clk 0:02:54.8]} 14... Bxf3 {[%clk 0:01:59.1]} 15. gxf3 {[%clk 0:02:55.7]}
15... Nd4 {[%clk 0:01:58.4]} 16. O-O-O {[%clk 0:02:13.9]} 16... Qf6 {[%clk
0:01:28.7]} 17. Rdh1 {[%clk 0:00:48.4]} 17... Rh8 {[%clk 0:01:27.1]} 18. Rxh8
{[%clk 0:00:46]} 18... Rxh8 {[%clk 0:01:28]} 19. Rxh8 {[%clk 0:00:46.5]} 19...
Kxh8 {[%clk 0:01:28.9]} 20. Qb4 {[%clk 0:00:44.8]} 20... b6 {[%clk 0:00:25.8]}
21. Bxa6 {[%clk 0:00:44.3]} 21... Qxf3 {[%clk 0:00:25.7]} 22. Kb1 {[%clk
0:00:43.4]} 22... Qd1+ {[%clk 0:00:23.6]} 23. Ka2 {[%clk 0:00:43.4]} 23... Nxc2
{[%clk 0:00:13.2]} 24. Qc3 {[%clk 0:00:03.3]} 24... Qa1+ {[%clk 0:00:12.1]} 25.
Kb3 {[%clk 0:00:03.6]} 25... Nd4+ {[%clk 0:00:12.3]} 26. Kb4 {[%clk 0:00:03]}
26... c5+ {[%clk 0:00:10.1]} 27. Kc4 {[%clk 0:00:02.8]} 27... Qxa4+ {[%clk
0:00:10.2]} 28. Kd5 {[%clk 0:00:02.8]} 28... Qxa6 {[%clk 0:00:10.4]} 29. Qd2
{[%clk 0:00:02.9]} 29... Qb7+ {[%clk 0:00:10]} 30. Kxd6 {[%clk 0:00:02.6]} 30...
Qc6+ {[%clk 0:00:08.8]} 31. Ke7 {[%clk 0:00:02.7]} 31... Qe6+ {[%clk 0:00:08.3]}
32. Kf8 {[%clk 0:00:02.9]} 32... Qc8+ {[%clk 0:00:08]} 33. Kxf7 {[%clk
0:00:02.8]} 33... Qe6+ {[%clk 0:00:08.1]} 34. Kf8 {[%clk 0:00:03]} 34... Qf6+
{[%clk 0:00:08.6]} 35. Ke8 {[%clk 0:00:03.1]} 35... Kg7 {[%clk 0:00:09]} 36. b4
{[%clk 0:00:02.5]} 36... Nc6 {[%clk 0:00:07.8]} 0-1